bitfinex-derivatives/quotes_SOLF0:USTF0_20250221
["timestamp","ask_amount","ask_price","bid_price","bid_amount"]
[1740139087949,9.94819459,177.2,177.17,5.68384674]
[1740139088150,1.41092391,177.19,177.17,0.04114674]
[1740139088352,15.59029459,177.2,177.17,0.04114674]
[1740139088655,1.41092391,177.19,177.17,0.04114674]
[1740139088856,15.59029459,177.2,177.17,0.04114674]
[1740139089154,1.41092535,177.19,177.17,5.68414674]
[1740139089352,9.94819459,177.2,177.17,5.68414674]
[1740139089549,1.41091845,177.19,177.17,5.68414674]
[1740139089748,15.59029459,177.2,177.17,5.68414674]
[1740139089949,1.41091845,177.19,177.17,5.68414674]
[1740139090149,15.59029459,177.2,177.17,5.68414674]
[1740139090349,1.41093825,177.19,177.17,5.68414674]
[1740139090550,15.59029459,177.2,177.17,5.68414674]
[1740139090750,1.41093825,177.19,177.17,5.68414674]
[1740139090946,15.59029459,177.2,177.17,5.68414674]
[1740139091146,1.41093691,177.19,177.17,0.04114674]
[1740139091346,9.94819459,177.2,177.18,5.6427]
[1740139091553,1.41093691,177.19,177.18,5.6427]
[1740139091751,1.41093691,177.19,177.17,5.68404674]
[1740139091951,15.59039459,177.2,177.17,5.68404674]
[1740139092153,1.41093691,177.19,177.17,5.68404674]
[1740139092352,15.59039459,177.2,177.17,5.68404674]
[1740139092557,1.41093691,177.19,177.17,5.68404674]
[1740139092758,15.59039459,177.2,177.17,5.68404674]
[1740139093055,1.41093001,177.19,177.17,5.68404674]
[1740139093249,15.59039459,177.2,177.17,5.68404674]
[1740139093447,1.41093001,177.19,177.17,5.68404674]
[1740139093648,15.59039459,177.2,177.17,5.68404674]
[1740139093850,1.41093835,177.19,177.17,5.68404674]
[1740139094055,15.59039459,177.2,177.17,5.68404674]
[1740139094358,1.41093835,177.19,177.17,5.68404674]
[1740139094558,15.59039459,177.2,177.17,5.68404674]
[1740139094758,7.05333547,177.19,177.17,5.68404674]
[1740139094959,5.6424,177.19,177.17,0.04114674]
[1740139095658,9.90483301,177.18,177.17,0.04114674]
[1740139095857,16.95855821,177.18,177.17,0.04114674]
[1740139096166,71.98753301,177.18,177.17,0.04114674]
[1740139096660,73.39856912,177.18,177.17,0.04114674]
[1740139097060,67.75586912,177.18,177.17,0.04114674]
[1740139097657,73.39856912,177.18,177.17,0.04114674]
[1740139097858,73.39864711,177.18,177.17,0.04114674]
[1740139098659,67.75594711,177.18,177.17,0.04114674]
[1740139099862,73.39864711,177.18,177.17,0.04114674]
[1740139100257,16.95864711,177.18,177.17,0.04114674]
[1740139101266,16.958646,177.18,177.17,0.04114674]
[1740139101767,73.398646,177.18,177.17,0.04114674]
[1740139102170,16.958646,177.18,177.17,0.04114674]
[1740139103673,73.398646,177.18,177.17,0.04114674]
[1740139107875,71.98753301,177.18,177.17,0.04114674]
[1740139112078,16.95878819,177.18,177.17,0.04114674]
[1740139112276,73.39878819,177.18,177.17,0.04114674]
[1740139115778,71.98753301,177.18,177.17,0.04114674]
[1740139115972,73.39878819,177.18,177.17,0.04114674]
[1740139116179,16.95878819,177.18,177.17,0.04114674]
[1740139116480,73.39878819,177.18,177.17,0.04114674]
[1740139116669,16.95878819,177.18,177.17,0.04114674]
[1740139118783,73.39878819,177.18,177.17,0.04114674]
[1740139119080,5.6438,177.15,177.12,5.6445]
[1740139119281,11.31608819,177.14,177.12,5.6445]
[1740139119481,9.90483301,177.14,177.12,5.6445]
[1740139120175,1.41139227,177.13,177.12,5.6445]
[1740139120380,9.90483301,177.14,177.12,5.6445]
[1740139121184,1.41137908,177.13,177.12,5.6445]
[1740139123485,1.41138118,177.13,177.12,5.6445]
[1740139133993,1.41138118,177.13,177.11,0.03986237]
[1740139134293,1.41138118,177.12,177.11,5.68466237]
[1740139134993,1.41129207,177.12,177.11,5.68466237]
[1740139139999,7.05589207,177.12,177.11,0.03986237]
[1740139141999,7.05613869,177.12,177.11,0.03986237]
[1740139149698,7.05621466,177.12,177.11,0.03986237]
[1740139154409,0.03817505,177.15,177.11,0.03986237]
[1740139155014,5.68207505,177.15,177.11,0.03986237]
[1740139155214,0.03817505,177.15,177.11,0.03986237]
[1740139155715,5.68187505,177.15,177.11,0.03986237]
[1740139156615,9.90483301,177.14,177.11,0.03986237]
[1740139156815,15.54883301,177.14,177.11,0.03986237]
[1740139157212,9.90483301,177.14,177.11,0.03986237]
[1740139158017,5.68187505,177.15,177.11,0.03986237]
[1740139158217,15.58670806,177.15,177.11,0.03986237]
[1740139161215,9.94300806,177.15,177.11,0.03986237]
[1740139161416,9.94300806,177.15,177.11,5.68466237]
[1740139161922,9.94300806,177.15,177.11,0.03986237]
[1740139162123,15.58660806,177.15,177.11,0.03986237]
[1740139163519,15.58660806,177.15,177.11,5.68476237]
[1740139164024,9.94300806,177.15,177.12,5.6443]
[1740139164523,9.94300806,177.15,177.11,0.03986237]
[1740139164724,9.94300806,177.15,177.12,5.6445]
[1740139166428,1.41125747,177.14,177.12,5.6445]
[1740139166721,1.41125747,177.13,177.12,5.6445]
[1740139168532,1.41125747,177.13,177.12,62.1045]
[1740139169229,0.03817505,177.15,177.14,5.644]
[1740139169424,1.4492644,177.15,177.14,5.644]
[1740139169623,1.4492644,177.15,177.11,9.94469538]
[1740139169819,1.41108935,177.14,177.13,5.6441]
[1740139174823,1.41108935,177.14,177.13,71.99893301]
[1740139175029,0.03817505,177.15,177.13,66.35483301]
[1740139175327,0.03817505,177.15,177.14,5.644]
[1740139175535,9.90483301,177.22,177.14,56.45]
[1740139175831,9.90483301,177.22,177.19,5.6422]
[1740139176726,9.94822495,177.22,177.19,5.68472638]
[1740139176931,9.94822495,177.22,177.19,0.04252638]
[1740139177835,9.90483301,177.2,177.19,0.04252638]
[1740139179834,9.94822495,177.22,177.19,5.68492638]
[1740139180338,9.94822495,177.22,177.2,5.6419]
[1740139183937,0.04339194,177.22,177.21,5.6417]
[1740139185636,0.04339194,177.22,177.19,5.68472638]
[1740139185836,0.04339194,177.22,177.19,0.04252638]
[1740139186236,0.04339194,177.22,177.19,5.68472638]
[1740139188939,0.04339194,177.22,177.2,5.642]
[1740139189140,0.04339194,177.22,177.19,0.04252638]
[1740139189336,0.04339194,177.22,177.19,5.68472638]
[1740139191239,0.04339194,177.22,177.2,5.642]
[1740139196244,0.04339194,177.22,177.19,5.68462638]
[1740139197250,1.41071495,177.21,177.19,5.68462638]
[1740139197444,0.04339194,177.22,177.19,5.68462638]
[1740139197645,1.41071652,177.21,177.19,5.68462638]
[1740139197944,0.04339194,177.22,177.19,5.68462638]
[1740139198244,1.41070414,177.21,177.19,5.68462638]
[1740139198444,0.04339194,177.22,177.19,5.68462638]
[1740139198645,1.41070414,177.21,177.19,5.68462638]
[1740139198945,0.04339194,177.22,177.19,5.68462638]
[1740139199138,1.41070414,177.21,177.19,5.68482638]
[1740139199339,0.04339194,177.22,177.19,5.68482638]
[1740139199639,1.41070414,177.21,177.19,5.68482638]
[1740139199843,0.04339194,177.22,177.19,5.68482638]
[1740139200043,1.41070413,177.21,177.19,5.68482638]
[1740139200245,9.94822495,177.22,177.19,0.04252638]
[1740139200448,1.41075928,177.21,177.19,0.04252638]
[1740139200647,1.41075928,177.2,177.19,0.04252638]
[1740139200845,15.58972495,177.22,177.19,0.04252638]
[1740139201047,1.41081379,177.21,177.19,0.04252638]
[1740139201238,9.94822495,177.22,177.19,0.04252638]
[1740139201441,7.05263208,177.21,177.19,0.04252638]
[1740139201647,9.94822495,177.22,177.19,0.04252638]
[1740139201948,7.05265237,177.21,177.19,0.04252638]
[1740139202149,1.41085237,177.2,177.19,0.04252638]
[1740139202451,11.31568538,177.2,177.19,0.04252638]
[1740139202747,16.95768538,177.2,177.19,0.04252638]
[1740139202948,1.41085237,177.2,177.19,0.04252638]
[1740139203144,1.41085237,177.21,177.19,0.04252638]
[1740139203348,0.04339194,177.22,177.19,0.04252638]
[1740139203549,1.41081914,177.21,177.19,0.04252638]
[1740139203749,0.04339194,177.22,177.19,0.04252638]
[1740139203948,1.41081917,177.21,177.19,0.04252638]
[1740139204250,16.95765455,177.2,177.19,0.04252638]
[1740139204453,7.05282154,177.2,177.19,0.04252638]
[1740139205948,1.41082154,177.2,177.19,0.04252638]
[1740139206149,0.04339194,177.22,177.19,0.04252638]
[1740139206348,1.41078732,177.21,177.19,0.04252638]
[1740139206550,0.04339194,177.22,177.19,0.04252638]
[1740139206751,1.41078577,177.21,177.19,0.04252638]
[1740139206951,9.94822495,177.22,177.19,0.04252638]
[1740139207153,1.41077907,177.21,177.19,0.04252638]
[1740139207347,1.41077907,177.2,177.19,0.04252638]
[1740139207552,0.04339194,177.22,177.19,0.04252638]
[1740139207753,1.41074767,177.21,177.19,9.94735939]
[1740139208052,0.04339194,177.22,177.2,5.642]
[1740139208250,0.04339194,177.22,177.19,9.94735939]
[1740139208450,1.7912,177.29,177.21,9.90483301]
[1740139208754,1.41046914,177.28,177.23,9.90483301]
[1740139208954,1.41046914,177.27,177.23,9.90483301]
[1740139209253,1.41046914,177.26,177.23,9.90483301]
[1740139209454,1.41046914,177.25,177.23,9.90483301]
[1740139209653,1.41046914,177.24,177.23,0.04205193]
[1740139212563,57.83046914,177.24,177.13,9.90483301]
[1740139212770,15.19723301,177.25,177.13,9.90483301]
[1740139212771,9.90483301,177.2,177.13,9.90483301]
[1740139212959,1.41046914,177.19,177.15,9.90483301]
[1740139213160,9.90483301,177.22,177.15,9.90483301]
[1740139213355,1.41091347,177.21,177.17,9.90483301]
[1740139213556,9.90483301,177.26,177.19,9.90483301]
[1740139213761,0.04056839,177.21,177.19,9.90483301]
[1740139214562,0.04056839,177.21,177.19,15.54713301]
[1740139215060,0.04056839,177.21,177.2,5.642]
[1740139215961,1.7225,177.3,177.2,56.43]
[1740139215962,9.90483301,177.28,177.2,56.43]
[1740139216166,1.41051448,177.27,177.23,5.641]
[1740139216359,1.41051448,177.26,177.23,5.641]
[1740139216556,1.41051448,177.25,177.23,5.641]
[1740139216758,1.41051448,177.24,177.23,5.641]
[1740139217564,1.41051448,177.24,177.23,62.061]
[1740139218068,0.0381552,177.25,177.24,5.6408]
[1740139218271,9.90483301,177.32,177.24,66.32483301]
[1740139218463,9.90483301,177.32,177.26,9.90483301]
[1740139218767,5.6386,177.31,177.26,9.90483301]
[1740139218968,9.90483301,177.32,177.26,9.90483301]
[1740139219168,15.54333301,177.32,177.26,15.54483301]
[1740139219563,15.54333301,177.32,177.27,0.03729612]
[1740139219564,0.03689083,177.31,177.27,0.03729612]
[1740139221670,0.03689083,177.31,177.27,5.67689612]
[1740139221968,0.03689083,177.31,177.28,9.90483301]
[1740139222561,9.90483301,177.3,177.27,0.03729612]
[1740139222762,5.6394,177.29,177.27,0.03729612]
[1740139223168,9.90483301,177.3,177.27,0.03729612]
[1740139223368,0.03689083,177.31,177.27,0.03729612]
[1740139224163,9.90483301,177.3,177.27,0.03729612]
[1740139224873,5.6394,177.29,177.27,0.03729612]
[1740139225370,5.6395,177.28,177.27,0.03729612]
[1740139225772,15.54433301,177.28,177.27,0.03729612]
[1740139228178,11.66833301,177.3,177.27,0.03729612]
[1740139229065,0.03689083,177.31,177.27,0.03729612]
[1740139229275,0.03689083,177.31,177.28,5.6394]
[1740139229776,0.03689083,177.31,177.27,9.94212913]
[1740139229977,9.90483301,177.29,177.27,0.03729612]
[1740139230174,1.41015321,177.28,177.2,0.51590594]
[1740139230474,9.90483301,177.26,177.2,0.51590594]
[1740139230674,9.90483301,177.28,177.21,9.90483301]
[1740139230876,1.41044246,177.27,177.21,9.90483301]
[1740139231076,1.7635,177.3,177.2,0.51590594]
[1740139231077,11.66833301,177.3,177.23,9.90483301]
[1740139231277,1.41036067,177.29,177.23,9.90483301]
[1740139231472,1.44856658,177.28,177.25,0.04131495]
[1740139231781,1.41036067,177.27,177.25,0.04131495]
[1740139232678,1.41037436,177.26,177.25,0.04131495]
[1740139234177,0.03820591,177.28,177.26,5.6401]
[1740139234477,0.03820591,177.28,177.25,9.94614796]
[1740139234870,0.03820591,177.28,177.27,5.6398]
[1740139235973,9.94303892,177.28,177.25,0.04131495]
[1740139236480,1.41033445,177.27,177.25,0.04131495]
[1740139236679,9.94303892,177.28,177.25,0.04131495]
[1740139236887,1.4103495,177.27,177.25,0.04131495]
[1740139237082,9.94303892,177.28,177.25,0.04131495]
[1740139237274,1.41035704,177.27,177.25,5.68151495]
[1740139237477,0.03820591,177.28,177.25,5.68151495]
[1740139237679,1.41031357,177.27,177.25,5.68151495]
[1740139237879,0.03820591,177.28,177.25,5.68151495]
[1740139238176,1.41031392,177.27,177.25,5.68151495]
[1740139238375,0.03820591,177.28,177.25,5.68151495]
[1740139238679,1.41030668,177.27,177.25,5.68151495]
[1740139238880,0.03820591,177.28,177.26,5.6401]
[1740139239181,1.41030668,177.27,177.26,5.6401]
[1740139239379,1.41030668,177.27,177.25,0.04131495]
[1740139239582,5.67770591,177.28,177.25,0.04131495]
[1740139239881,1.41031856,177.27,177.25,0.04131495]
[1740139240083,5.64,177.27,177.25,0.04131495]
[1740139240282,1.41041195,177.26,177.25,0.04131495]
[1740139240781,1.41048332,177.26,177.25,0.04131495]
[1740139241679,11.31531633,177.26,177.2,0.51590594]
[1740139241879,9.90483301,177.24,177.2,0.51590594]
[1740139242081,1.41048332,177.23,177.2,0.51590594]
[1740139242279,9.90483301,177.25,177.2,0.51590594]
[1740139242483,1.41058738,177.24,177.2,0.51590594]
[1740139242785,9.90483301,177.25,177.2,0.51590594]
[1740139242980,1.45018486,177.24,177.2,0.55721164]
[1740139243179,0.03960327,177.24,177.2,0.55721164]
[1740139243482,0.03960327,177.24,177.21,5.6417]
[1740139244081,0.03960327,177.24,177.22,5.6413]
[1740139245287,0.03960327,177.24,177.2,0.55721164]
[1740139245488,1.41064878,177.23,177.2,6.19901164]
[1740139245687,5.68040327,177.24,177.2,6.19901164]
[1740139245887,1.41066946,177.23,177.2,6.19901164]
[1740139246087,0.03960327,177.24,177.2,6.19901164]
[1740139246287,1.4106709,177.23,177.2,6.19901164]
[1740139246488,0.03960327,177.24,177.2,6.19901164]
[1740139246684,1.41070311,177.23,177.22,5.6414]
[1740139246884,0.03960327,177.24,177.23,9.90483301]
[1740139247394,0.03960327,177.24,177.23,15.54593301]
[1740139250387,0.03960327,177.24,177.23,71.96593301]
[1740139250689,5.423,177.32,177.29,5.6391]
[1740139250891,1.4101498,177.31,177.29,5.6391]
[1740139251189,1.4101498,177.3,177.29,5.6391]
[1740139251586,1.4101498,177.3,177.28,5.6393]
[1740139251785,1.4101498,177.29,177.28,5.67900195]
[1740139252387,1.4101498,177.29,177.28,0.03970195]
[1740139253087,1.4101498,177.29,177.28,5.67920195]
[1740139253289,0.04136389,177.31,177.28,9.94453496]
[1740139253494,0.04136389,177.31,177.3,9.90483301]
[1740139253987,21.65635979,177.39,177.3,66.30483301]
[1740139254192,1.40969839,177.38,177.32,9.90483301]
[1740139254495,1.40969839,177.37,177.32,9.90483301]
[1740139254791,1.40969839,177.36,177.34,5.6374]
[1740139254986,1.40969839,177.35,177.32,9.90483301]
[1740139255183,0.03660438,177.37,177.33,0.04103279]
[1740139255589,1.40965554,177.36,177.33,0.04103279]
[1740139255790,1.40965554,177.35,177.33,0.04103279]
[1740139255992,0.03660438,177.37,177.33,0.04103279]
[1740139256190,1.40966421,177.36,177.33,0.04103279]
[1740139256388,0.03660438,177.37,177.33,0.04103279]
[1740139256389,1.40966421,177.35,177.33,0.04103279]
[1740139256592,9.90483301,177.36,177.33,0.04103279]
[1740139256793,1.40969591,177.35,177.33,0.04103279]
[1740139257093,9.90483301,177.36,177.33,0.04103279]
[1740139257286,1.40968725,177.35,177.33,0.04103279]
[1740139257488,9.90483301,177.36,177.33,0.04103279]
[1740139257695,1.40968728,177.35,177.33,0.04103279]
[1740139257891,9.90483301,177.36,177.33,0.04103279]
[1740139258092,1.40968583,177.35,177.33,0.04103279]
[1740139258394,0.03660438,177.37,177.33,0.04103279]
[1740139258595,1.40966243,177.36,177.33,0.04103279]
[1740139258795,1.40966243,177.35,177.33,0.04103279]
[1740139259103,5.6372,177.36,177.33,0.04103279]
[1740139259290,1.40967154,177.35,177.33,0.04103279]
[1740139259486,5.6372,177.36,177.33,0.04103279]
[1740139260791,0.03660438,177.37,177.33,0.04103279]
[1740139261396,5.6376,177.35,177.33,0.04103279]
[1740139261897,0.03660438,177.37,177.33,0.04103279]
[1740139262096,5.67350438,177.37,177.33,0.04103279]
[1740139262296,0.03660438,177.37,177.33,5.67893279]
[1740139262491,0.03660438,177.37,177.33,0.04103279]
[1740139262795,0.03660438,177.37,177.33,5.67883279]
[1740139262997,0.03660438,177.37,177.33,0.04103279]
[1740139264697,0.03660438,177.37,177.34,5.6374]
[1740139265199,0.03660438,177.37,177.34,9.90483301]
[1740139266096,0.03660438,177.37,177.36,5.637]
[1740139266297,0.03660438,177.37,177.36,15.54183301]
[1740139266493,9.90483301,177.42,177.36,66.28483301]
[1740139266694,9.90483301,177.42,177.36,9.90483301]
[1740139266995,15.53923301,177.44,177.4,5.6357]
[1740139267195,9.90483301,177.44,177.38,9.90483301]
[1740139267395,9.90483301,177.46,177.4,9.90483301]
[1740139267597,1.40915476,177.45,177.4,9.90483301]
[1740139267897,0.04245202,177.45,177.41,0.03705229]
[1740139268096,0.04245202,177.45,177.43,5.6347]
[1740139268291,0.04245202,177.45,177.41,0.03705229]
[1740139268693,0.04245202,177.45,177.42,5.635]
[1740139268893,0.04245202,177.45,177.41,0.03705229]
[1740139269098,0.04245202,177.45,177.42,9.90483301]
[1740139269300,0.04245202,177.45,177.44,5.6344]
[1740139269497,9.90483301,177.51,177.44,9.90483301]
[1740139269902,9.90483301,177.49,177.44,9.90483301]
[1740139270095,9.90483301,177.5,177.44,9.90483301]
[1740139270497,9.90483301,177.5,177.45,5.634]
[1740139270700,0.0366329,177.49,177.46,9.90483301]
[1740139271303,15.47829892,177.52,177.46,9.90483301]
[1740139271800,9.90483301,177.5,177.45,0.03930107]
[1740139272196,9.90483301,177.48,177.45,0.03930107]
[1740139272996,5.6338,177.46,177.45,0.03930107]
[1740139273192,9.90483301,177.48,177.45,0.03930107]
[1740139273399,5.6336,177.47,177.45,0.03930107]
[1740139273999,5.6337,177.47,177.45,0.03930107]
[1740139274301,9.90483301,177.48,177.45,0.03930107]
[1740139274498,0.04283351,177.49,177.45,0.03930107]
[1740139274499,9.94766652,177.49,177.45,0.03930107]
[1740139275002,15.58056652,177.49,177.45,0.03930107]
[1740139275596,9.94766652,177.49,177.45,0.03930107]
[1740139275898,9.90483301,177.47,177.45,0.03930107]
[1740139276201,5.6338,177.46,177.45,0.03930107]
[1740139276494,9.90483301,177.47,177.38,9.90483301]
[1740139276701,9.90483301,177.43,177.38,9.90483301]
[1740139277200,9.90483301,177.43,177.36,157.50483301]
[1740139277598,0.03642889,177.41,177.38,0.04334252]
[1740139278001,0.03642889,177.41,177.38,5.67944252]
[1740139278503,9.9412619,177.41,177.38,0.04334252]
[1740139279397,9.9412619,177.41,177.38,5.67954252]
[1740139279603,0.03642889,177.41,177.38,0.04334252]
[1740139280101,0.03642889,177.41,177.39,5.636]
[1740139280303,0.03642889,177.41,177.38,0.04334252]
[1740139280699,0.03642889,177.41,177.39,5.636]
[1740139281194,0.03642889,177.41,177.38,5.67964252]
[1740139283805,0.03642889,177.41,177.38,0.04334252]
[1740139284403,0.03642889,177.41,177.38,5.67964252]
[1740139286808,0.03642889,177.41,177.38,0.04334252]
[1740139288103,0.03642889,177.41,177.38,5.67944252]
[1740139288909,5.6357,177.4,177.38,0.04334252]
[1740139289510,9.9412619,177.41,177.38,0.04334252]
[1740139289710,15.5766619,177.41,177.38,5.67964252]
[1740139290207,15.5766619,177.41,177.38,0.04334252]
[1740139290601,5.6357,177.4,177.38,0.04334252]
[1740139291307,9.9412619,177.41,177.38,0.04334252]
[1740139291308,15.54083301,177.39,177.38,0.04334252]
[1740139291604,9.90483301,177.39,177.31,9.90483301]
[1740139291809,15.54103301,177.39,177.33,9.90483301]
[1740139292211,15.54103301,177.39,177.35,5.6371]
[1740139292707,15.57922193,177.39,177.35,5.67529812]
[1740139292908,0.03818892,177.39,177.37,5.6364]
[1740139293109,0.03818892,177.39,177.35,9.94303113]
[1740139293305,0.03818892,177.39,177.37,9.90483301]
[1740139293504,0.03818892,177.39,177.37,15.54123301]
[1740139293908,0.03818892,177.39,177.37,9.90483301]
[1740139294101,0.03818892,177.39,177.38,5.6363]
[1740139294610,1.7715,177.46,177.42,5.635]
[1740139294809,1.40915475,177.45,177.42,9.90483301]
[1740139295110,1.7715,177.46,177.42,9.90483301]
[1740139295314,1.40912628,177.45,177.42,9.90483301]
[1740139295507,1.7715,177.46,177.42,9.90483301]
[1740139295801,1.45180546,177.45,177.42,9.94247715]
[1740139296010,0.04270148,177.45,177.42,15.57747715]
[1740139297810,0.04270148,177.45,177.42,9.94247715]
[1740139298309,0.04270148,177.45,177.44,9.90483301]
[1740139298511,0.04270148,177.45,177.44,15.53923301]
[1740139298908,15.15373301,177.53,177.44,66.26483301]
[1740139299108,1.40879928,177.52,177.46,9.90483301]
[1740139299309,7.04099928,177.51,177.46,15.53833301]
[1740139299506,5.6322,177.51,177.46,15.53833301]
[1740139299714,15.15373301,177.53,177.46,9.90483301]
[1740139299914,7.0408321,177.52,177.47,5.6334]
[1740139300111,1.44694355,177.51,177.48,0.04128726]
[1740139300314,0.03821145,177.51,177.48,0.04128726]
[1740139300612,0.03821145,177.51,177.49,5.6328]
[1740139300813,0.03821145,177.51,177.48,9.94612027]
[1740139301210,5.67041145,177.51,177.48,9.94612027]
[1740139302214,5.6325,177.5,177.48,0.04128726]
[1740139303110,5.67041145,177.51,177.48,0.04128726]
[1740139305420,5.6325,177.5,177.48,0.04128726]
[1740139306817,0.03821145,177.51,177.48,0.04128726]
[1740139307020,15.53763301,177.49,177.48,0.04128726]
[1740139307216,9.94304446,177.51,177.48,0.04128726]
[1740139307415,1.40883813,177.5,177.48,0.04128726]
[1740139307720,9.94304446,177.51,177.48,0.04128726]
[1740139308019,1.40876273,177.5,177.48,0.04128726]
[1740139308210,5.6328,177.49,177.48,0.04128726]
[1740139310314,15.53763301,177.49,177.48,0.04128726]
[1740139310517,5.6344,177.45,177.41,5.6352]
[1740139310722,5.6344,177.45,177.4,9.90483301]
[1740139311119,15.53873301,177.46,177.42,5.635]
[1740139311520,15.53873301,177.46,177.4,9.90483301]
[1740139311721,15.57727228,177.46,177.42,0.04031761]
[1740139311920,5.6345,177.44,177.42,0.04031761]
[1740139312122,9.94337228,177.46,177.42,0.04031761]
[1740139312621,5.6343,177.45,177.42,0.04031761]
[1740139313014,0.03853927,177.46,177.42,0.04031761]
[1740139313218,5.67253927,177.46,177.42,0.04031761]
[1740139313521,0.03853927,177.46,177.42,0.04031761]
[1740139314725,5.6343,177.45,177.42,0.04031761]
[1740139314926,0.03853927,177.46,177.42,0.04031761]
[1740139315625,5.6347,177.43,177.42,0.04031761]
[1740139316326,5.6345,177.44,177.42,0.04031761]
[1740139316726,9.90483301,177.45,177.42,0.04031761]
[1740139317127,5.6344,177.44,177.42,0.04031761]
[1740139317427,9.90483301,177.45,177.42,0.04031761]
[1740139317729,5.6347,177.43,177.42,0.04031761]
[1740139322930,5.6346,177.44,177.42,0.04031761]
[1740139323228,9.90483301,177.45,177.42,0.04031761]
[1740139323431,1.4091085,177.44,177.42,0.04031761]
[1740139323630,5.6347,177.43,177.42,0.04031761]
[1740139324430,9.90483301,177.45,177.42,0.04031761]
[1740139324630,5.6347,177.44,177.42,0.04031761]
[1740139325431,5.6347,177.43,177.42,0.04031761]
[1740139330832,7.04397503,177.43,177.42,0.04031761]
[1740139331034,5.6347,177.43,177.42,0.04031761]
[1740139331332,7.04391616,177.43,177.42,0.04031761]
[1740139331529,5.6347,177.43,177.42,0.04031761]
[1740139332725,7.04391994,177.43,177.42,0.04031761]
[1740139332924,5.6347,177.43,177.42,0.04031761]
[1740139334531,7.04392123,177.43,177.42,0.04031761]
[1740139335632,16.94875424,177.43,177.42,0.04031761]
[1740139337339,5.6359,177.4,177.35,9.90483301]
[1740139337735,9.90483301,177.43,177.35,15.54193301]
[1740139337934,1.40921002,177.42,177.35,15.54193301]
[1740139338137,9.90483301,177.43,177.35,15.54193301]
[1740139338329,5.67562578,177.4,177.37,0.03970245]
[1740139339133,0.03972578,177.4,177.37,5.67630245]
[1740139339338,0.03972578,177.4,177.37,9.94453546]
[1740139340336,5.67552578,177.4,177.37,9.94453546]
[1740139341336,5.6363,177.38,177.37,0.03970245]
[1740139341643,9.90483301,177.39,177.37,0.03970245]
[1740139341839,0.03972578,177.4,177.37,0.03970245]
[1740139342040,0.03972578,177.4,177.37,9.94453546]
[1740139342540,5.67542578,177.4,177.37,9.94453546]
[1740139343243,5.6361,177.39,177.37,0.03970245]
[1740139343640,0.03972578,177.4,177.37,0.03970245]
[1740139343941,5.636,177.39,177.37,0.03970245]
[1740139344144,0.03972578,177.4,177.37,0.03970245]
[1740139344331,5.67562578,177.4,177.37,9.94453546]
[1740139344537,0.03972578,177.4,177.37,9.94453546]
[1740139345142,0.03972578,177.4,177.39,9.90483301]
[1740139347742,0.03972578,177.4,177.39,71.91083301]
[1740139347937,11.67213301,177.49,177.39,66.27483301]
[1740139348138,5.6329,177.49,177.44,9.90483301]
[1740139349037,0.03592908,177.48,177.45,0.03728542]
[1740139349642,5.66912908,177.48,177.45,0.03728542]
[1740139350039,0.03592908,177.48,177.45,0.03728542]
[1740139351449,5.6335,177.47,177.45,0.03728542]
[1740139351940,0.03592908,177.48,177.45,0.03728542]
[1740139352747,5.6337,177.47,177.45,0.03728542]
[1740139354042,0.03592908,177.48,177.45,0.03728542]
[1740139354247,5.6338,177.46,177.45,0.03728542]
[1740139355639,56.35,177.46,177.36,9.90483301]
[1740139355843,9.90483301,177.42,177.36,9.90483301]
[1740139356244,5.6359,177.4,177.36,15.54153301]
[1740139356842,5.67551088,177.4,177.36,15.58033739]
[1740139357951,0.03961088,177.4,177.36,15.58033739]
[1740139359844,5.67531088,177.4,177.36,9.94363739]
[1740139360944,5.67531088,177.4,177.36,15.58053739]
[1740139361146,0.03961088,177.4,177.36,15.58053739]
[1740139362250,0.03961088,177.4,177.36,9.94363739]
[1740139363753,0.03961088,177.4,177.36,15.58043739]
[1740139364351,0.03961088,177.4,177.36,9.94363739]
[1740139365454,0.03961088,177.4,177.36,15.58053739]
[1740139369559,5.67531088,177.4,177.36,15.58053739]
[1740139373260,5.67531088,177.4,177.36,9.94363739]
[1740139373664,5.6365,177.38,177.36,0.03880438]
[1740139373962,9.94444389,177.4,177.36,0.03880438]
[1740139374160,0.03961088,177.4,177.36,9.94363739]
[1740139374349,5.67551088,177.4,177.36,9.94363739]
[1740139374556,0.03961088,177.4,177.36,9.94363739]
[1740139375160,5.6363,177.38,177.36,9.94363739]
[1740139375360,5.6363,177.38,177.36,0.03880438]
[1740139377267,5.636,177.39,177.36,0.03880438]
[1740139377664,9.94444389,177.4,177.36,0.03880438]
[1740139377863,5.6363,177.38,177.36,0.03880438]
[1740139380466,5.6361,177.39,177.36,0.03880438]
[1740139380863,9.94444389,177.4,177.36,0.03880438]
[1740139381168,5.6361,177.39,177.36,0.03880438]
[1740139384371,9.94444389,177.4,177.36,0.03880438]
[1740139384666,5.6361,177.39,177.36,0.03880438]
[1740139386971,0.03961088,177.4,177.36,9.94363739]
[1740139387273,0.03961088,177.4,177.38,9.90483301]
[1740139387763,0.03961088,177.4,177.39,5.636]
[1740139387963,9.90483301,177.49,177.39,56.37]